Cogmind - Beta 13 @@@ ROGUE MODE // 2024.04.03 @ 13:56:14 Player: f_ Result: Self-destructed Performance ------------- Evolutions (1) 500 Regions Visited (4) 800 Robots Destroyed (6) 30 Value Destroyed (142) 142 Prototype IDs (0) 0 Alien Tech Used (0) 0 Bonus (-12) -12 TOTAL SCORE: 1460 Bonus ------- Friendly Fire -12 Cogmind --------- Core Integrity 373/400 Matter 43/300 Energy 73/100 System Corruption 6% Temperature Cool (0) Movement Rolling (100) Location -9/Mines Parts ------- > --- POWER (1) -------- (None) > --- PROPULSION (2) --- Compact Wheel > --- UTILITY (4) ------ Small Storage Unit Light Armor Plating > --- WEAPON (2) ------- Small Laser Heavy Rocket Launcher > --- INVENTORY (8) ---- Flight Unit Peak State ------------ > --- POWER ------------ (None) > --- PROPULSION ------- Compact Wheel Compact Wheel > --- UTILITY ---------- Small Storage Unit Light Armor Plating > --- WEAPON ----------- Small Laser Heavy Rocket Launcher > --- INVENTORY -------- Flight Unit [Rating: 9] Favorites ----------- Power Ion Engine Engine Ion Engine Propulsion Compact Wheel Wheel Compact Wheel Utility Small Storage Unit Storage Small Storage Unit Protection Light Armor Plating Weapon Small Laser Energy Gun Small Laser Launcher Heavy Rocket Launcher Build | -11 -10 -10 -9 -9 ------- Run | Yrd Mat Min Mat Min Slots Evolved 2 | . . . 2 . Power . | . . . . . Propulsion . | . . . . . Utility 2 | . . . 2 . Weapon . | . . . . . Parts Attached 8 | 6 1 . . 1 Power 1 | 1 . . . . Engine 1 | 1 . . . . Core . | . . . . . Reactor . | . . . . . Propulsion 2 | 2 . . . . Treads . | . . . . . Leg . | . . . . . Wheel 2 | 2 . . . . Hover . | . . . . . Flight . | . . . . . Utility 2 | 1 1 . . . Device . | . . . . . Storage 1 | 1 . . . . Processor . | . . . . . Hackware . | . . . . . Protection 1 | . 1 . . . Artifact . | . . . . . Weapon 3 | 2 . . . 1 Energy Gun 2 | 2 . . . . Energy Cannon . | . . . . . Ballistic Gun . | . . . . . Ballistic Cannon . | . . . . . Launcher 1 | . . . . 1 Special Weapon . | . . . . . Impact Weapon . | . . . . . Slashing Weapon . | . . . . . Piercing Weapon . | . . . . . Special Melee Weapon . | . . . . . Unidentified Prototypes . | . . . . . Corrupted Parts 1 | . . . . 1 System Corruption 5 | . . . . 5 Parts Lost 3 | . 1 1 . 1 Power 1 | . 1 . . . Propulsion 1 | . . . . 1 Utility . | . . . . . Weapon 1 | . . 1 . . Highest Loss Streak 2 | . 1 2 . 1 To Critical Strikes . | . . . . . Average Slot Usage (%) 74 | . 89 71 55 60 Engine 6 | . 14 . . . Wheel 25 | . 28 28 22 21 Storage 12 | . 14 14 11 11 Protection 8 | . 4 14 11 11 Energy Gun 19 | . 28 14 11 11 Launcher 1 | . . . . 5 Naked Turns . | . . . . . Heaviest Build 16 | 13 16 11 9 16 Greatest Support 32 | 32 32 32 32 32 Greatest Overweight (x) . | . . . . . Average Overweight (x) . | . . . . . Largest Inventory Capacity 8 | 8 8 8 8 8 Average Capacity 7 | 6 8 8 8 8 Most Carried 4 | 4 1 . 1 2 Average Carried . | . . . . 1 Final Capacity 8 | 8 8 8 8 8 Final Carried 1 | . . . 1 1 Class Distribution -------------------- 100% | Mutant Dominant Class ---------------- Mutant | -10/Materials Mutant | -10/Mines Mutant | -9/Materials Mutant | -9/Mines Resources | -11 -10 -10 -9 -9 ----------- Run | Yrd Mat Min Mat Min Matter Collected 162 | 79 58 . . 25 Remotely . | . . . . . Salvage Created 149 | . 137 . . 12 Parts 10 | . 10 . . . Haulers Intercepted . | . . . . . Recyclers Shooed . | . . . . . Parts Field Recycled . | . . . . . Retrieved Matter . | . . . . . Parts Self-Destructed . | . . . . . Prevented . | . . . . . Kills | -11 -10 -10 -9 -9 ------- Run | Yrd Mat Min Mat Min Combat Hostiles Destroyed 9 | . 3 . . 6 Guns 3 | . 3 . . . AOE 6 | . . . . 6 Classes Destroyed 4 | . 2 . . 2 Worker 1 | . . . . 1 Builder 1 | . 1 . . . Grunt 4 | . 3 . . 1 Assembled 5 | . . . . 5 Best Kill Streak 5 | . 2 . . 5 Combat Bots Only 5 | . 2 . . 5 Max Kills in Single Turn 3 | . 1 . . 3 Gunslinging . | . . . . . Exploded 3 | . . . . 3 Melee . | . . . . . Uniques/NPCs Destroyed . | . . . . . Combat | -11 -10 -10 -9 -9 -------- Run | Yrd Mat Min Mat Min Hostile Shots Fired 37 | . 16 4 3 14 Missed 7 | . 2 1 1 3 Damage Taken 420 | . 155 36 30 199 Core 74 | . 47 . . 27 Absorbed by Shields . | . . . . . Core Remaining (%) 90 | 100 . 81 . . Volleys Fired 25 | . 10 1 . 14 Largest 2 | . 2 1 . 1 Hottest 80 | . 80 40 . 40 Shots Fired 35 | . 20 1 . 14 Gun 24 | . 20 1 . 3 Cannon . | . . . . . Launcher 11 | . . . . 11 Special . | . . . . . Kinetic . | . . . . . Thermal 14 | . 10 1 . 3 Explosive 11 | . . . . 11 Electromagnetic 10 | . 10 . . . Robot Hit Streak 7 | . 7 . . 2 Robot Miss Streak 2 | . 1 1 . 2 Penetration Max . | . . . . . Secondary Targets . | . . . . . Shots Hit Robots 17 | . 14 . . 3 Core Hits 24 | . 6 . . 18 Critical Kills . | . . . . . Critical Parts Destroyed . | . . . . . Critical Strikes . | . . . . . Melee Attacks . | . . . . . Impact . | . . . . . Slashing . | . . . . . Piercing . | . . . . . Sneak Attacks . | . . . . . Combat Hostiles . | . . . . . Follow-up Attacks . | . . . . . Damage Inflicted 1250 | . 173 . . 1077 Guns 197 | . 173 . . 24 Cannons . | . . . . . Explosions 1053 | . . . . 1053 Melee . | . . . . . Ramming . | . . . . . Kinetic . | . . . . . Thermal 92 | . 68 . . 24 Explosive 1053 | . . . . 1053 Electromagnetic 105 | . 105 . . . Impact . | . . . . . Slashing . | . . . . . Piercing . | . . . . . Highest Corruption 6 | . . . . 6 Average Corruption 5 | . . . . 5 Corruption Purged . | . . . . . Corruption Blocked . | . . . . . Effects 2 | . . . . 2 Energy Discharges 2 | . . . . 2 Overload Shots . | . . . . . Overflow Damage 21 | . . . . 21 Projectiles . | . . . . . Explosions 21 | . . . . 21 Melee . | . . . . . Knockbacks . | . . . . . Impact . | . . . . . Kinetic . | . . . . . Secondary . | . . . . . Self-Inflicted Damage . | . . . . . Shots . | . . . . . Rammed . | . . . . . Targets Rammed . | . . . . . Kicked . | . . . . . Crushed . | . . . . . Highest Temperature 198 | . 198 . . . Average Temperature 86 | . 86 . . . Received Heat Transfer 114 | . 87 21 . 6 Siege Activations . | . . . . . Robots Corrupted . | . . . . . Combat Hostiles . | . . . . . Parts Fried . | . . . . . Impact Corruptions . | . . . . . Robots Melted . | . . . . . Combat Hostiles . | . . . . . Parts Melted . | . . . . . Heat Transferred 200 | . 150 . . 50 Parts Sabotaged . | . . . . . Parts Stolen . | . . . . . Parts Stripped . | . . . . . Power Chain Reactions . | . . . . . Alert | -11 -10 -10 -9 -9 ------- Run | Yrd Mat Min Mat Min Peak Influence 128 | . 128 65 85 126 Initial 45 | . . 45 25 33 Average 63 | . 80 39 51 66 Maximum Alert Level . | . . . . . Low Security (%) 100 | 100 100 100 100 100 Level 1 . | . . . . . Level 2 . | . . . . . Level 3 . | . . . . . Level 4 . | . . . . . Level 5 . | . . . . . High Security . | . . . . . Max Security . | . . . . . Squads Dispatched 3 | . 2 . 1 . Investigation 1 | . 1 . . . Extermination . | . . . . . Reinforcement 2 | . 1 . 1 . Assault . | . . . . . Garrison . | . . . . . Intercept . | . . . . . Searches Triggered . | . . . . . Construction Impeded . | . . . . . Haulers Reinforced . | . . . . . Active Scanning Responses . | . . . . . Cargo Convoy Interrupts . | . . . . . Stealth | -11 -10 -10 -9 -9 --------- Run | Yrd Mat Min Mat Min Distress Signals 2 | . . . 2 . Communications Jammed . | . . . . . Distress Signals . | . . . . . Times Spotted 23 | . 10 2 4 7 Peak Tracking Total 20 | . 4 2 4 20 Tactical Retreats 2 | . . 1 1 . Traps | -11 -10 -10 -9 -9 ------- Run | Yrd Mat Min Mat Min Traps Triggered 3 | . 1 . . 2 Indirectly . | . . . . . Trap Hack Attempts . | . . . . . Triggered . | . . . . . Disarmed . | . . . . . Reprogrammed . | . . . . . Reused . | . . . . . Traps Extracted . | . . . . . Installed . | . . . . . Triggered . | . . . . . Machines | -11 -10 -10 -9 -9 ---------- Run | Yrd Mat Min Mat Min Machines Disabled . | . . . . . Max in Single Turn . | . . . . . Machines Repaired . | . . . . . Machines Dismantled . | . . . . . Machines Sabotaged . | . . . . . Overloaded Fab Kills . | . . . . . Hacking | -11 -10 -10 -9 -9 --------- Run | Yrd Mat Min Mat Min Machines Accessed 3 | . 2 . . 1 Terminals 2 | . 2 . . . Fabricators . | . . . . . Repair Stations . | . . . . . Recycling Units . | . . . . . Scanalyzers . | . . . . . Garrison Access . | . . . . . Total Hacks 5 | . 4 . . 1 Successful 2 | . 1 . . 1 Failed 3 | . 3 . . . Catastrophic 1 | . 1 . . . Database Lockouts . | . . . . . Manual 4 | . 4 . . . Terminals 4 | . 4 . . . Fabricators . | . . . . . Repair Stations . | . . . . . Recycling Units . | . . . . . Scanalyzers . | . . . . . Garrison Access . | . . . . . Terminal Hacks 2 | . 1 . . 1 Open Door 1 | . . . . 1 Branch Access Points 1 | . 1 . . . Fabricator Hacks . | . . . . . Repair Station Hacks . | . . . . . Recycling Unit Hacks . | . . . . . Scanalyzer . | . . . . . Garrison Access Hacks . | . . . . . Unauthorized Hacks . | . . . . . Terminals . | . . . . . Fabricators . | . . . . . Repair Stations . | . . . . . Recycling Units . | . . . . . Scanalyzers . | . . . . . Garrison Access . | . . . . . Data Cores Recovered . | . . . . . Used . | . . . . . Hacking Detections 1 | . 1 . . . Full Trace Events . | . . . . . Feedback Events . | . . . . . Feedback Blocked . | . . . . . Robot Schematics Acquired . | . . . . . Robots Built . | . . . . . Authchips . | . . . . . Time . | . . . . . Total Robot Build Rating . | . . . . . Part Schematics Acquired . | . . . . . Parts Built . | . . . . . Authchips . | . . . . . Time . | . . . . . Total Part Build Rating . | . . . . . Parts Repaired . | . . . . . Time . | . . . . . Parts Recycled . | . . . . . Recycled Matter . | . . . . . Retrieved Matter . | . . . . . Retrieved Components . | . . . . . Parts Scanalyzed . | . . . . . Part Schematics Acquired . | . . . . . Parts Damaged . | . . . . . Bothacking | -11 -10 -10 -9 -9 ------------ Run | Yrd Mat Min Mat Min Used RIF Installer . | . . . . . Robots Hacked . | . . . . . Non-combat . | . . . . . Combat . | . . . . . Robot Hacks Applied . | . . . . . Relay Couplers Released . | . . . . . Fabnet Peak Effective % . | . . . . . Robots Rewired . | . . . . . Allies Hacked . | . . . . . Hacks Repelled . | . . . . . Allies | -11 -10 -10 -9 -9 -------- Run | Yrd Mat Min Mat Min Total Allies . | . . . . . Largest Group . | . . . . . Highest-Rated Group . | . . . . . Highest-Rated Ally . | . . . . . Total Orders . | . . . . . Ally Attacks . | . . . . . Total Damage . | . . . . . Kills . | . . . . . Allies Corrupted . | . . . . . Allies Melted . | . . . . . Intel | -11 -10 -10 -9 -9 ------- Run | Yrd Mat Min Mat Min Robot Analysis Total . | . . . . . Derelict Logs Recovered 2 | . . 1 . 1 Drone Launches . | . . . . . Drone Recoveries . | . . . . . Exploration | -11 -10 -10 -9 -9 ------------- Run | Yrd Mat Min Mat Min Turns Passed 564 | 37 247 45 81 154 Spaces Moved 476 | 32 199 43 78 124 Core 12 | 12 . . . . Treads . | . . . . . Legs . | . . . . . Wheels 464 | 20 199 43 78 124 Hover . | . . . . . Flight . | . . . . . Fastest Speed 50 | 50 100 100 100 100 Average Speed 98 | 81 100 100 100 100 Slowest Speed 100 | 100 100 100 100 100 Overloaded Moves . | . . . . . Propulsion Burnouts . | . . . . . Robots Hopped . | . . . . . Cave-ins Triggered . | . . . . . Exploration Rate (%) 20 | 3 37 14 17 33 Regions Visited 4 Branch Regions 2 Pre-discovered Areas 2 | . . 1 . 1 Known Exits Taken 1 | . 1 . . . Unknown Exits Taken 3 | 1 . 1 1 . Scrap Searched . | . . . . . Spaces Dug . | . . . . . Terrain Destroyed 129 | . . . . 129 Melee . | . . . . . Projectile . | . . . . . AOE 129 | . . . . 129 Terrain Rammed . | . . . . . Walls Destroyed . | . . . . . Machines Disabled . | . . . . . Actions | -11 -10 -10 -9 -9 --------- Run | Yrd Mat Min Mat Min Total 535 | 43 227 44 81 140 Wait 21 | . 17 1 3 . Move 472 | 31 198 42 77 124 Hop . | . . . . . Pick Up 9 | 6 1 . 1 1 Fast Attach . | . . . . . Attach 8 | 6 1 . . 1 Detach . | . . . . . Swap . | . . . . . Drop . | . . . . . Fire 25 | . 10 1 . 14 Melee . | . . . . . Ram . | . . . . . Kick . | . . . . . Crush . | . . . . . Escape Stasis . | . . . . . Rewire . | . . . . . Trap . | . . . . . Miscellaneous . | . . . . . Route ------- -11/Scrapyard -10/Materials (discovered 3 exits: [*Mat] / *Min x2) -10/Mines -9/Materials -9/Mines History --------- Turn | Location | Event 17 | -11/Scrapyard | Discovered new exit (range 16) 38 | -11/Scrapyard | Entered Materials 138 | -10/Materials | Discovered new exit (range 13) 192 | -10/Materials | Identified exit to Mines 285 | -10/Materials | Entered Mines 292 | -10/Mines | Learned location of Zion (-6) 302 | -10/Mines | Build established: Mutant 318 | -10/Mines | Discovered new exit (range 9) 330 | -10/Mines | Entered Materials 330 | -9/Materials | Evolved 2 slots: Utility x2 404 | -9/Materials | Discovered new exit (range 8) 411 | -9/Materials | Entered Mines 417 | -9/Mines | Learned Materials stockpile data 476 | -9/Mines | Met a Derelict who couldn't figure out how to use a Trap Extractor 503 | -9/Mines | Learned location of Storage (-9) 545 | -9/Mines | Assembled infested the area 565 | -9/Mines | Self-destructed Last Messages --------------- 00505_ U-05 Engineer lays Concrete. 00506_ U-05 Engineer builds a Wall. 00525_ The unstable cave ceiling collapses. 00527_ U-05 Engineer builds a Wall. 00533_ The unstable cave ceiling collapses. 00533_ U-05 Engineer lays Concrete. 00537_ U-05 Engineer builds a Wall. 00545_ ALERT: Infestation in the mines, dispatching Demolisher response squad. 00550_ K-01 Serf destroyed. 00553_ Destroyed Asb. Hover Unit. 00555_ The unstable cave ceiling collapses. 00555_ Destroyed Asb. F-torch. 00555_ as-58867 destroyed. 00555_ as-68102 destroyed. 00557_ Com. Wheel destroyed. 00557_ as-73378 destroyed. 00561_ as-21346 destroyed. 00564_ System corrupted: Energy discharge (-32). 00565_ The unstable cave ceiling collapses. Map ----- +----------------------------------------------------+ | ???????????????????# #???# #???## ##?## | | ???????????????????# #???# ##?## ##????## | | ???????????????????# #??## ### ##?????? | | ???????????????????# #??# ##????? | | ??????????????????? #??# #????? | | ???????????????????# #?## #????? | | ???????????????????# ### ##????? | | ??????????????????## ## #####?????? | | ??????????????????# ##?????????? | | ??????????????????# ### ##??????????? | | ??????????????????# #?## ####???????????? | | ??????????????????# #??# ##??????????????? | | ??????????????????# #??# #???????????????? | | ??????????????????# #??## #???????????????? | | ???????????######## #???#### #???????????????? | | ???????????# # # ##?????####???????????????? | | ???####?#### # #????????????????????????? | | ???# !### # ##???????????????????????? | | ???# !^=# # ###?????????????????????? | | ???# [^ #?????????????????????? | | ???# ! #?????????????????????? | | ???# ! # #### ### #?????????????????????? | | ???# =### ## # # # $#?????????????????????? | | ???##### # ### ##????????????????????? | | ???????# ## ##???????????????????? | | ???????## ## @ #???????????????????? | | ????????### #### #???????????????????? | | ?????????## #??#### #?????????????????? | | ???###??## #?????# #????????????????? | | ??## ### ##????# #????????????????? | | ??# ##???# #????????????????? | | ???# ##??# #???????????????? | | ???## ##? #???????????????? | | ????### #?# # #???????????????? | | ??????### #?# ##???????????????? | | ????????## ##?# ????????????????? | | ?????????## ####??## ???????????????? | | ??????????####??????# #??????????????? | | ????????????????????? ????????????????? | | ????????????????????? ???????????????????? | | ????????????????????? ???????????????????? | | ????????????????????????? ???????????????????? | | ????????????????????????? ??????????????????? | | ?????????????????????????? ??????????????????? | | ??????????????????????????????????????????????? | | ??????????????????????????????????????????????? | | ??????????????????????????????????????????????? | | ??????????????????????????????????????????????? | | ??????????????????????????????????????????????? | | ??????????????????????????????????????????????? | +----------------------------------------------------+ Best States ------------- Heat Dissipation 28 Energy Generation 10 Energy Capacity 250 Matter Stores 177 Matter Capacity 300 Sight Range 16 Terrain Scan Density 10 Armor Coverage 150 Evasion (%) 50 Item Schematics ----------------- None Robot Schematics ------------------ None Fabricated ------------ Nothing Alien Tech Used ----------------- None Achievements -------------- None Challenges ------------ None Game ------ Seed AssemblyShadeBattery Manual? 0 Play Time 00:08:47 Cumulative 111.3 hours Start 2024.04.03 @ 13:49:33 End 2024.04.03 @ 13:56:14 Sessions 1 Manual Loads 0 Difficulty Rogue Special Mode None Game No. 116 Rogue 113 Adventurer 0 Explorer 3 Win Type - Total 0 Types 0/0/0/0/0/0/0/0/0 Lore% 31 Gallery% 47 Achievement% 34 Wizard Run 0 Options --------- Layout 1 ASCII 0 Keyboard 0 Movement Mouse Keybinds 0 Fullscreen 2 Font 24/Tamsyn Map View 50x35 Zoom Use 0% Tactical HUD 1 Map Filters NONE Filters NONE Steam 1 RUN: 459e8ba1-3c5a-46d4-83ac-92838c62aa9f